Cogmind - Beta 16.1 @@@ ROGUE MODE // 2026.04.07 @ 01:51:45 Player: Maelyn Result: Destroyed by G-34 Mercenary with Small Laser Performance ------------- Evolutions (1) 500 Regions Visited (2) 400 Robots Destroyed (15) 75 Value Destroyed (356) 356 Prototype IDs (0) 0 Alien Tech Used (0) 0 Bonus (0) 0 TOTAL SCORE: 1331 Bonus ------- None Cogmind --------- Core Integrity 0/400 Matter 141/300 Energy 100/100 System Corruption 0% Temperature Cool (6) Movement Core (750) Ox14 Location -9/Materials Parts ------- > --- POWER (1) -------- (None) > --- PROPULSION (2) --- (None) > --- UTILITY (3) ------ High-capacity Storage Unit > --- WEAPON (3) ------- Scythe Scythe > --- INVENTORY (20) --- Compact Wheel Armored Wheel Flight Unit Heavy EM Pulse Gun Heavy EM Pulse Gun Heavy Assault Rifle Heavy Assault Rifle Scythe Scythe Peak State ------------ > --- POWER ------------ Ion Engine > --- PROPULSION ------- Compact Wheel Armored Wheel > --- UTILITY ---------- High-capacity Storage Unit Reaction Control System > --- WEAPON ----------- Heavy EM Pulse Gun Heavy Assault Rifle Heavy Assault Rifle > --- INVENTORY -------- Light Ion Engine Light Treads Light Treads Compact Wheel Heavy EM Pulse Gun Heavy EM Pulse Gun Heavy EM Pulse Gun Heavy Assault Rifle Scythe Scythe Scythe Scythe [Rating: 16] Favorites ----------- Power Ion Engine Engine Ion Engine Propulsion Compact Wheel Treads Light Treads Wheel Compact Wheel Utility High-capacity Storage Unit Device Reaction Control System Storage High-capacity Storage Unit Weapon Heavy Assault Rifle Energy Gun Heavy EM Pulse Gun Ballistic Gun Heavy Assault Rifle Slashing Weapon Scythe Build | -11 -10 -9 ------- Run | Yrd Mat Mat Slots Evolved 2 | . . 2 Power . | . . . Propulsion . | . . . Utility 1 | . . 1 Weapon 1 | . . 1 Parts Attached 20 | 6 4 10 Power 2 | 1 . 1 Engine 2 | 1 . 1 Core . | . . . Reactor . | . . . Propulsion 6 | 2 1 3 Treads 2 | . . 2 Leg . | . . . Wheel 4 | 2 1 1 Hover . | . . . Flight . | . . . Utility 3 | 1 1 1 Device 1 | . . 1 Storage 2 | 1 1 . Processor . | . . . Hackware . | . . . Protection . | . . . Artifact . | . . . Weapon 9 | 2 2 5 Energy Gun 2 | . . 2 Energy Cannon . | . . . Ballistic Gun 5 | 2 2 1 Ballistic Cannon . | . . . Launcher . | . . . Special Weapon . | . . . Impact Weapon . | . . . Slashing Weapon 2 | . . 2 Piercing Weapon . | . . . Special Melee Weapon . | . . . Unidentified Prototypes . | . . . Parts Lost 9 | . . 9 Power 2 | . . 2 Propulsion 3 | . . 3 Utility 1 | . . 1 Weapon 3 | . . 3 Highest Loss Streak 5 | . . 5 To Critical Strikes . | . . . Average Backups 8 | 3 7 10 Power . | . 1 . Propulsion 2 | 1 2 2 Utility . | . . . Weapon 5 | 1 4 6 Tool/Special . | . . . Unused Backups 6 | . 1 5 Power . | . . . Propulsion 1 | . . 1 Utility . | . . . Weapon 5 | . 1 4 Tool/Special . | . . . Average Slot Usage (%) 80 | . 84 76 Engine 12 | . 14 9 Treads 2 | . . 5 Wheel 21 | . 28 13 Device 2 | . . 5 Storage 12 | . 14 11 Energy Gun 3 | . . 7 Ballistic Gun 21 | . 27 16 Slashing Weapon 3 | . . 7 Peak Build Rating 16 | 6 10 16 Average Rating 10 | 4 8 13 On Entrance 5 | . 6 9 Avg Prop Armor Cover (%) . | . . . Naked Turns . | . . . Heaviest Build 56 | 12 56 55 Greatest Support 40 | 26 32 40 Greatest Overweight (x) 14 | . 1 14 Average Overweight (x) . | . . 1 Largest Inventory Capacity 20 | 8 20 20 Average Capacity 13 | 6 9 20 Most Carried 12 | 5 8 12 Average Carried 8 | 3 7 10 Final Capacity 20 | 8 20 20 Final Carried 9 | 4 8 9 Class Distribution -------------------- 76% | Mutant 23% | Tank Dominant Class ---------------- Mutant | -10/Materials Tank | -9/Materials Resources | -11 -10 -9 ----------- Run | Yrd Mat Mat Matter Collected 364 | 222 5 137 Remotely . | . . . Salvage Created 488 | . 168 320 Parts 34 | . 11 23 Haulers Intercepted . | . . . Recyclers Shooed . | . . . Parts Field Recycled . | . . . Retrieved Matter . | . . . Parts Self-Destructed . | . . . Prevented . | . . . Parts Restored . | . . . Kills | -11 -10 -9 ------- Run | Yrd Mat Mat Combat Hostiles Destroyed 13 | . 5 8 Guns 12 | . 4 8 AOE 1 | . 1 . Classes Destroyed 5 | . 3 2 Worker 1 | . 1 . Recycler 1 | . . 1 Swarmer 7 | . 3 4 Grunt 4 | . 2 2 Sentry 2 | . . 2 Best Kill Streak 6 | . 6 4 Combat Bots Only 5 | . 5 4 Max Kills in Single Turn 2 | . 2 1 Gunslinging . | . . . Exploded 1 | . 1 . Melee . | . . . Uniques/NPCs Destroyed . | . . . Combat | -11 -10 -9 -------- Run | Yrd Mat Mat Hostile Shots Fired 162 | . 13 149 Missed 39 | . 6 33 Hits 123 | . 7 116 Projectile 123 | . 7 116 Critical Strikes 2 | . . 2 Damage Taken 1513 | . 177 1336 Core 454 | . 50 404 Absorbed by Shields . | . . . Core Remaining (%) 90 | 100 80 . Volleys Fired 40 | . 7 33 Largest 3 | . 2 3 Hottest 113 | . 46 113 Shots Fired 75 | . 14 61 Gun 75 | . 14 61 Cannon . | . . . Launcher . | . . . Special . | . . . Kinetic 56 | . 14 42 Thermal . | . . . Explosive . | . . . Electromagnetic 19 | . . 19 Robot Hit Streak 8 | . 5 8 Robot Miss Streak 4 | . 3 4 Penetration Max . | . . . Secondary Targets 2 | . . 2 Max Gunslinging Chain 1 | . . 1 Shots Hit Robots 44 | . 8 36 Core Hits 18 | . 7 11 Critical Kills . | . . . Critical Parts Destroyed . | . . . Critical Strikes . | . . . Melee Attacks . | . . . Impact . | . . . Slashing . | . . . Piercing . | . . . Sneak Attacks . | . . . Combat Hostiles . | . . . Follow-up Attacks . | . . . Damage Inflicted 821 | . 229 592 Guns 726 | . 134 592 Cannons . | . . . Explosions 95 | . 95 . Melee . | . . . Ramming . | . . . Kinetic 518 | . 134 384 Thermal 50 | . 50 . Explosive . | . . . Electromagnetic 253 | . 45 208 Impact . | . . . Slashing . | . . . Piercing . | . . . Highest Corruption 1 | . 1 . Average Corruption 1 | . 1 . Corruption Purged . | . . . Corruption Blocked . | . . . Overload Shots . | . . . Overflow Damage 10 | . 10 . Projectiles . | . . . Explosions 10 | . 10 . Melee . | . . . Knockbacks . | . . . Impact . | . . . Kinetic . | . . . Secondary . | . . . Self-Inflicted Damage 101 | . 101 . Shots 3 | . 3 . Rammed . | . . . Targets Rammed . | . . . Kicked . | . . . Crushed . | . . . Highest Temperature 213 | . 7 213 Average Temperature 66 | . 4 70 Received Heat Transfer 549 | . 27 522 Siege Activations . | . . . Martial Activations . | . . . Shielding Activations . | . . . Robots Disrupted . | . . . Combat Hostiles . | . . . Robots Corrupted . | . . . Combat Hostiles . | . . . Parts Fried . | . . . Impact Corruptions . | . . . Robots Melted . | . . . Combat Hostiles . | . . . Parts Melted . | . . . Heat Transferred 50 | . 50 . Parts Sabotaged . | . . . Parts Stolen . | . . . Parts Stripped . | . . . Power Chain Reactions 1 | . 1 . Alert | -11 -10 -9 ------- Run | Yrd Mat Mat Maximum Alert Level . | . . . Low Security (%) 100 | 100 100 100 Level 1 . | . . . Level 2 . | . . . Level 3 . | . . . Level 4 . | . . . Level 5 . | . . . High Security . | . . . Max Security . | . . . Peak Influence 169 | . 169 144 Initial 53 | . . 53 Average 50 | . 47 65 Influence Increases 440 | . 189 251 Destroy 0b10 Robot/C 260 | . 100 160 Destroy 0b10 Robot/NC 10 | . 5 5 Destroy Leader 60 | . 20 40 Disable Machine 60 | . 30 30 Destroy Structure 5 | . 4 1 Lose Combat Pursuer 45 | . 30 15 Influence Decreases 356 | . 60 296 Entered New Map 76 | . . 76 Time Decay 190 | . 60 130 Lost Part 90 | . . 90 Squads Dispatched 1 | . . 1 Investigation 1 | . . 1 Extermination . | . . . Reinforcement . | . . . Assault . | . . . Garrison . | . . . Intercept . | . . . Searches Triggered . | . . . Construction Impeded . | . . . Haulers Reinforced . | . . . Active Scanning Responses . | . . . Cargo Convoy Interrupts . | . . . Stealth | -11 -10 -9 --------- Run | Yrd Mat Mat Distress Signals 2 | . 1 1 Communications Jammed . | . . . Distress Signals . | . . . Times Spotted 20 | . 8 12 Peak Tracking Total 8 | . 5 8 Tactical Retreats 2 | . 1 1 Traps | -11 -10 -9 ------- Run | Yrd Mat Mat Traps Triggered 1 | . . 1 Indirectly . | . . . Trap Hack Attempts . | . . . Triggered . | . . . Disarmed . | . . . Reprogrammed . | . . . Reused . | . . . Traps Extracted . | . . . Installed . | . . . Triggered . | . . . Machines | -11 -10 -9 ---------- Run | Yrd Mat Mat Machines Disabled 4 | . 2 2 Max in Single Turn 2 | . 2 2 Machines Repaired . | . . . Machines Dismantled . | . . . Machines Sabotaged . | . . . Overloaded Fab Kills . | . . . Hacking | -11 -10 -9 --------- Run | Yrd Mat Mat Machines Accessed . | . . . Terminals . | . . . Fabricators . | . . . Repair Stations . | . . . Recycling Units . | . . . Scanalyzers . | . . . Garrison Access . | . . . Total Hacks . | . . . Successful . | . . . Failed . | . . . Catastrophic . | . . . Database Lockouts . | . . . Manual . | . . . Terminals . | . . . Fabricators . | . . . Repair Stations . | . . . Recycling Units . | . . . Scanalyzers . | . . . Garrison Access . | . . . Terminal Hacks . | . . . Fabricator Hacks . | . . . Repair Station Hacks . | . . . Recycling Unit Hacks . | . . . Scanalyzer . | . . . Garrison Access Hacks . | . . . Unauthorized Hacks . | . . . Terminals . | . . . Fabricators . | . . . Repair Stations . | . . . Recycling Units . | . . . Scanalyzers . | . . . Garrison Access . | . . . Data Cores Recovered . | . . . Used . | . . . Hacking Detections . | . . . Full Trace Events . | . . . Feedback Events . | . . . Feedback Blocked . | . . . Robot Schematics Acquired . | . . . Robots Built . | . . . Authchips . | . . . Time . | . . . Total Robot Build Rating . | . . . Part Schematics Acquired . | . . . Parts Built . | . . . Authchips . | . . . Time . | . . . Total Part Build Rating . | . . . Part Studies Acquired . | . . . Parts Repaired . | . . . Time . | . . . Parts Recycled . | . . . Recycled Matter . | . . . Retrieved Matter . | . . . Retrieved Components . | . . . Parts Scanalyzed . | . . . Part Schematics Acquired . | . . . Parts Damaged . | . . . Bothacking | -11 -10 -9 ------------ Run | Yrd Mat Mat Used RIF Installer . | . . . Robots Hacked . | . . . Non-combat . | . . . Combat . | . . . Robot Hacks Applied . | . . . Relay Couplers Released . | . . . Fabnet Peak Effective % . | . . . Robots Rewired . | . . . Allies Hacked . | . . . Hacks Repelled . | . . . Allies | -11 -10 -9 -------- Run | Yrd Mat Mat Total Allies . | . . . Largest Group . | . . . Highest-Rated Group . | . . . Highest-Rated Ally . | . . . Total Orders . | . . . Ally Attacks . | . . . Total Damage . | . . . Kills . | . . . Allies Corrupted . | . . . Allies Melted . | . . . Intel | -11 -10 -9 ------- Run | Yrd Mat Mat Active Infowar (turns) . | . . . Robot Analysis Total . | . . . Derelict Logs Recovered . | . . . Drone Launches . | . . . Drone Recoveries . | . . . Exploration | -11 -10 -9 ------------- Run | Yrd Mat Mat Turns Passed 620 | 56 300 264 Spaces Moved 440 | 46 280 114 Core 6 | 2 . 4 Treads 11 | . . 11 Legs . | . . . Wheels 423 | 44 280 99 Hover . | . . . Flight . | . . . Fastest Speed 50 | 50 90 110 Average Speed 107 | 88 95 146 Slowest Speed 750 | 90 115 750 Overloaded Moves . | . . . Propulsion Burnouts . | . . . Robots Hopped . | . . . Potential Cave-ins . | . . . Cave-ins Triggered . | . . . Exploration Rate (%) 19 | 2 39 16 Regions Visited 2 Branch Regions . Pre-discovered Areas . | . . . Known Exits Taken . | . . . Unknown Exits Taken 2 | 1 1 . Scrap Searched . | . . . Spaces Dug . | . . . Terrain Destroyed 4 | . 4 . Melee . | . . . Projectile . | . . . AOE 4 | . 4 . Terrain Rammed . | . . . Walls Destroyed . | . . . Machines Disabled . | . . . Actions | -11 -10 -9 --------- Run | Yrd Mat Mat Total 524 | 60 300 164 Wait . | . . . Move 438 | 45 279 114 Hop . | . . . Pick Up 21 | 9 5 7 Fast Attach 5 | 1 4 . Attach 11 | 5 . 6 Detach . | . . . Swap 4 | . . 4 Drop 5 | . 5 . Fire 40 | . 7 33 Melee . | . . . Ram . | . . . Kick . | . . . Crush . | . . . Escape Stasis . | . . . Rewire . | . . . Trap . | . . . Miscellaneous . | . . . Route ------- -11/Scrapyard -10/Materials -9/Materials History --------- Turn | Location | Event 23 | -11/Scrapyard | Discovered new exit (range 15) 57 | -11/Scrapyard | Entered Materials 169 | -10/Materials | Discovered new exit (range 13) 307 | -10/Materials | Build established: Mutant 357 | -10/Materials | Entered another Materials area 357 | -9/Materials | Evolved 2 slots: Utility x1, Weapon x1 559 | -9/Materials | Lost 5 parts (1p1n1u2w) 601 | -9/Materials | Core integrity fell below 50% 615 | -9/Materials | Core integrity fell below 20% 621 | -9/Materials | Destroyed by G-34 Mercenary with Small Laser Last Messages --------------- 00533_ Acquired 16 matter. 00545_ Acquired Flight Unit. 00547_ Critical hit (Burn: +37). 00550_ Y-45 Defender destroyed. 00561_ S-10 Pest destroyed. 00576_ G-34 Mercenary destroyed. 00578_ R-06 Scavenger collects Aluminum Leg. 00581_ R-06 Scavenger collects Heat Sink. 00585_ R-06 Scavenger collects Lgt. Ion Engine. 00588_ R-06 Scavenger collects Flight Unit. 00588_ Lgt. Treads destroyed. 00589_ R-06 Scavenger collects Ion Engine. 00590_ Lgt. Ion Engine destroyed. 00592_ R-06 Scavenger collects Corrupted Lgt. Treads. 00592_ Lgt. Treads destroyed. 00596_ R-06 Scavenger collects Lgt. Assault Rifle. 00596_ Hvy. Assault Rifle destroyed. 00608_ R-06 Scavenger collects Flight Unit. Map ----- +----------------------------------------------------+ | ??????????????????????????????????????#^ | | ??????????????????????????????????????# ^ | | ??????????????????????????????????????# | | ??????????????????????????????????????# """ | | ??????????????????????????????????????# """ | | ??????????????????????????????????????# """ | | ??????????????????????????????????????# | | ??????????????????????????????????????# "Y" | | ??????????????????????????????????????# """ | | ??????????????????????????????????????#######+#### | | ??????????????????????????????????????????# T # | | ??????????????"|"????????????#+#??????????# # | | ??????????????"|" ?????????### ###????????# # | | ?????????????? #????##### #????????# ] # | | ??????????????? ???? #????????# # | | ???????????????? ???? +????????# """" # | | ?????????????????? ????? #????????# """" # | | ??????????????????##+####### #????????#!"" " # | | ??????????????????# #?# #?????????#= [ # | | ??????????????????# #?#[= ####+#????# " # | | ??????????????????# ###%* ###### """" # | | ??????????????????# % +%[=% = ! + """" # | | ??????????????????# u ###=[ !###### # | | ??????????????????# =#?######+#+##???### #### | | ??????????????????# g ### #?????###??? | | ??????????????????# g @/ # ! #??????????? | | ??????????????????# ### #??????????? | | ??????????????????# g #?# #??????????? | | ??????????????????#########?# """ """ #??????????? | | ????????????????????????????# """ """ #??????????? | | ????????????????????????????# """ """ #??????????? | | ????????????????????????????# #??????????? | | ??????????????????????????????#########??????????? | | ?????????????????????????????????????????????????? | | ?????????????????????????????????????????????????? | | ?????????????????????????????????????????????????? | | ?????????????????????????????????????????????????? | | ?????????????????????????????????????????????????? | | ?????????????????????????????????????????????????? | | ?????????????????????????????????????????????????? | | ?????????????????????????????????????????????????? | | ?????????????????????????????????????????????????? | | ?????????????????????????????????????????????????? | | ?????????????????????????????????????????????????? | | ?????????????????????????????????????????????????? | | ?????????????????????????????????????????????????? | | ?????????????????????????????????????????????????? | | ?????????????????????????????????????????????????? | | ?????????????????????????????????????????????????? | | ?????????????????????????????????????????????????? | +----------------------------------------------------+ Best States ------------- Heat Dissipation 28 Energy Generation 10 Energy Capacity 250 Matter Stores 262 Matter Capacity 300 Sight Range 16 Terrain Scan Density 10 Evasion (%) 42 Recoil Reduction 2 Item Schematics ----------------- None Robot Schematics ------------------ None Fabricated ------------ Nothing Repaired ---------- Nothing Studied --------- None Alien Tech Used ----------------- None Achievements -------------- None Challenges ------------ None Game ------ Seed ArmorDoorCalibrator Manual? 0 Play Time 00:08:22 Cumulative 15.2 hours Start 2026.04.07 @ 01:43:43 End 2026.04.07 @ 01:51:45 Sessions 1 Manual Loads 0 Difficulty Rogue Special Mode None Game No. 41 Rogue 41 Adventurer 0 Explorer 0 Win Type - Total 0 Types 0/0/0/0/0/0/0/0/0/0 Lore% 7 Gallery% 18 Achievement% 10 Wizard Run 0 Options --------- Layout 2 ASCII 0 Keyboard 0 Movement Mouse Keybinds 0 Fullscreen 1 Font 24/Crisp Map View 50x44 Zoom Use 0% Tactical HUD 1 Map Filters NONE Filters NONE Steam 1 RUN: 9cae1ab9-5b83-4572-b79f-0b997e4acbc5